[Event "25th European Club Cup Women 2021"]
[Site "Struga"]
[Date "2021.09.24"]
[Round "7.14"]
[White "Gunina, Valentina"]
[Black "Abdumalik, Zhansaya"]
[Result "1-0"]
[ECO "D90"]
[WhiteElo "2446"]
[BlackElo "2502"]
[Annotator "ChessBase"]
[PlyCount "99"]
[EventDate "2021.09.18"]
[EventType "team-tourn"]
[EventCountry "MKD"]
[SourceTitle "playchess.com"]
[Source "ChessBase"]
[SourceQuality "1"]
[TimeControl "40/5400+30:1800+30"]

1. d4 {[%emt 0:00:03]} Nf6 {[%emt 0:00:36]} 2. c4 {[%emt 0:00:07]} g6 {[%emt 0:
00:05]} 3. Nc3 {[%emt 0:00:09]} d5 {[%emt 0:00:06]} 4. Nf3 {[%emt 0:00:08]} Bg7
{[%emt 0:00:06]} 5. Qa4+ {[%emt 0:00:06]} Bd7 {[%emt 0:01:51]} 6. Qb3 {[%emt 0:
00:15]} dxc4 {[%emt 0:00:04]} 7. Qxc4 {[%emt 0:00:08]} O-O {[%emt 0:00:03]} 8.
e4 {[%emt 0:10:09]} b5 {[%emt 0:00:42]} 9. Qb3 {[%emt 0:01:58]} c5 {[%emt 0:02:
13]} 10. dxc5 {[%emt 0:03:56]} Na6 {[%emt 0:03:07]} 11. e5 {[%emt 0:08:50]} Ng4
{[%emt 0:03:08]} 12. h3 {[%emt 0:02:29]} Nxe5 {[%emt 0:02:02]} 13. Nxe5 {
[%emt 0:00:04]} Bxe5 {[%emt 0:00:07]} 14. Bh6 {[%emt 0:02:59]} Re8 {[%emt 0:03:
30]} 15. Qd5 {[%emt 0:01:06]} Qc7 {[%emt 0:05:02]} 16. Rc1 {[%emt 0:24:56]}
Rad8 {[%emt 0:06:47]} 17. Qb3 {[%emt 0:16:50]} Nxc5 {[%emt 0:07:23]} 18. Qa3 {
[%emt 0:05:30]} Bd4 {[%emt 0:12:34]} 19. Nxb5 {[%emt 0:06:49]} Bxb5 {[%emt 0:
03:55]} 20. Bxb5 {[%emt 0:00:18]} Qb7 {[%emt 0:00:48]} 21. Rxc5 {[%emt 0:05:09]
} Qxg2 {[%emt 0:14:25]} 22. Rf1 {[%emt 0:00:08]} Qe4+ {[%emt 0:01:04]} 23. Be3
{[%emt 0:00:06]} Bxc5 {[%emt 0:04:01]} 24. Qxc5 {[%emt 0:00:02]} Rc8 {[%emt 0:
00:17]} 25. Qd4 {[%emt 0:01:19]} Qb1+ {[%emt 0:00:55]} 26. Ke2 {[%emt 0:00:20]}
Qc2+ {[%emt 0:00:10]} 27. Qd2 {[%emt 0:00:50]} Red8 {[%emt 0:00:04]} 28. Qxc2 {
[%emt 0:01:47]} Rxc2+ {[%emt 0:00:09]} 29. Kf3 {[%emt 0:00:01]} Rxb2 {[%emt 0:
00:53]} 30. a4 {[%emt 0:00:01]} Ra8 {[%emt 0:01:46]} 31. Rc1 {[%emt 0:01:12]}
a6 {[%emt 0:00:31]} 32. Bc4 {[%emt 0:00:16]} e5 {[%emt 0:02:30]} 33. Bh6 {
[%emt 0:01:34]} Rb6 {[%emt 0:01:38]} 34. Ba2 {[%emt 0:02:06]} Rf6+ {[%emt 0:00:
29]} 35. Kg3 {[%emt 0:00:45]} g5 {[%emt 0:01:34]} 36. Bxg5 {[%emt 0:00:04]} Rg6
{[%emt 0:00:04]} 37. Kh4 {[%emt 0:00:29]} h6 {[%emt 0:02:54]} 38. Be3 {[%emt 0:
01:08]} Rb8 {[%emt 0:00:04]} 39. Kh5 {[%emt 0:01:31]} Rf6 {[%emt 0:02:35]} 40.
Bb1 {[%emt 0:00:00]} Kh8 {[%emt 0:00:00]} 41. Be4 {[%emt 0:06:26]} Rb4 {
[%emt 0:04:10]} 42. f3 {[%emt 0:00:42]} Rxe4 {[%emt 0:09:29]} 43. fxe4 {
[%emt 0:01:49]} Rf3 {[%emt 0:00:06]} 44. Bxh6 {[%emt 0:00:41]} Rxh3+ {[%emt 0:
00:05]} 45. Kg5 {[%emt 0:00:06]} Kh7 {[%emt 0:00:27]} 46. Bf8 {[%emt 0:00:10]}
Rf3 {[%emt 0:00:10]} 47. Be7 {[%emt 0:00:27]} Kg7 {[%emt 0:00:16]} 48. Rc6 {
[%emt 0:00:07]} Rf4 {[%emt 0:01:33]} 49. Bf6+ {[%emt 0:00:20]} Kh7 {[%emt 0:00:
03]} 50. Rc8 {[%emt 0:00:16]} 1-0

[Event "25th European Club Cup Women 2021"]
[Site "Struga"]
[Date "2021.09.24"]
[Round "7.15"]
[White "Muzychuk, Mariya"]
[Black "Badelka, Olga"]
[Result "1/2-1/2"]
[ECO "C54"]
[WhiteElo "2540"]
[BlackElo "2422"]
[Annotator "ChessBase"]
[PlyCount "78"]
[EventDate "2021.09.18"]
[EventType "team-tourn"]
[EventCountry "MKD"]
[SourceTitle "playchess.com"]
[Source "ChessBase"]
[SourceQuality "1"]
[TimeControl "40/5400+30:1800+30"]

1. e4 {[%emt 0:00:03]} e5 {[%emt 0:00:06]} 2. Nf3 {[%emt 0:00:03]} Nc6 {
[%emt 0:00:06]} 3. Bc4 {[%emt 0:00:13]} Bc5 {[%emt 0:00:16]} 4. c3 {[%emt 0:00:
14]} Nf6 {[%emt 0:00:21]} 5. d4 {[%emt 0:00:06]} exd4 {[%emt 0:00:15]} 6. e5 {
[%emt 0:00:08]} d5 {[%emt 0:01:32]} 7. Bb5 {[%emt 0:00:08]} Ne4 {[%emt 0:00:16]
} 8. cxd4 {[%emt 1:33:35]} Bb6 {[%emt 0:03:11]} 9. Nc3 {[%emt 0:00:00]} O-O {
[%emt 0:00:53]} 10. Be3 {[%emt 0:00:00]} Bg4 {[%emt 0:01:14]} 11. h3 {[%emt 0:
00:00]} Bh5 {[%emt 0:06:48]} 12. Qc2 {[%emt 0:00:00]} f5 {[%emt 0:01:37]} 13.
Nxd5 {[%emt 0:00:00]} Ba5+ {[%emt 0:00:15]} 14. Ke2 {[%emt 0:00:00]} Nd2 {
[%emt 0:01:47]} 15. Qc5 {[%emt 0:00:00]} Ne4 {[%emt 0:00:17]} 16. Qc4 {[%emt 0:
00:00]} Bf7 {[%emt 0:06:14]} 17. Nf6+ {[%emt 0:00:00]} Kh8 {[%emt 0:05:20]} 18.
Qa4 {[%emt 0:00:00]} gxf6 {[%emt 0:28:48]} 19. Bxc6 {[%emt 0:00:00]} bxc6 {
[%emt 0:00:21]} 20. Qxa5 {[%emt 0:00:00]} Rb8 {[%emt 0:00:23]} 21. b3 {[%emt 0:
00:00]} Rb5 {[%emt 0:03:13]} 22. Qa6 {[%emt 0:00:00]} fxe5 {[%emt 0:13:30]} 23.
Rhc1 {[%emt 0:00:00]} f4 {[%emt 0:05:13]} 24. Qxc6 {[%emt 0:00:00]} Rd5 {
[%emt 0:00:24]} 25. Bd2 {[%emt 0:00:00]} Nxd2 {[%emt 0:02:40]} 26. Nxd2 {
[%emt 0:00:00]} Rxd4 {[%emt 0:00:25]} 27. Nf3 {[%emt 0:00:00]} Bd5 {[%emt 0:05:
25]} 28. Qc3 {[%emt 0:00:00]} Bxf3+ {[%emt 0:00:08]} 29. gxf3 {[%emt 0:00:00]}
Qd5 {[%emt 0:03:33]} 30. Rd1 {[%emt 0:00:00]} Qb5+ {[%emt 0:01:56]} 31. Ke1 {
[%emt 0:00:00]} Rfd8 {[%emt 0:01:36]} 32. Rxd4 {[%emt 0:04:48]} exd4 {[%emt 0:
00:04]} 33. Qc4 {[%emt 0:00:31]} Re8+ {[%emt 0:03:10]} 34. Kd2 {[%emt 0:01:07]}
Qe5 {[%emt 0:01:53]} 35. Rg1 {[%emt 0:02:15]} c5 {[%emt 0:00:15]} 36. Qd3 {
[%emt 0:01:10]} Qe6 {[%emt 0:01:53]} 37. Qc4 {[%emt 0:00:30]} Qe5 {[%emt 0:00:
19]} 38. Qd3 {[%emt 0:00:49]} Qe6 {[%emt 0:00:02]} 39. Qc4 {[%emt 0:00:48]} Qe5
{[%emt 0:00:04]} 1/2-1/2

[Event "25th European Club Cup Women 2021"]
[Site "Struga"]
[Date "2021.09.24"]
[Round "7.16"]
[White "Maltsevskaya, Aleksandra"]
[Black "Buksa, Nataliya"]
[Result "1/2-1/2"]
[ECO "E09"]
[WhiteElo "2407"]
[BlackElo "2417"]
[Annotator "NA"]
[PlyCount "87"]
[EventDate "2021.09.18"]
[EventType "team-tourn"]
[EventCountry "MKD"]
[SourceTitle "playchess.com"]
[Source "ChessBase"]
[SourceQuality "1"]
[TimeControl "40/5400+30:1800+30"]

1. Nf3 {[%emt 0:00:02]} d5 {[%emt 0:01:34]} 2. g3 {[%emt 0:00:08]} Nf6 {
[%emt 0:00:18]} 3. Bg2 {[%emt 0:00:11]} e6 {[%emt 0:00:12]} 4. O-O {[%emt 0:00:
23]} Be7 {[%emt 0:00:02]} 5. d4 {[%emt 0:00:23]} O-O {[%emt 0:00:06]} 6. c4 {
[%emt 0:00:14]} Nbd7 {[%emt 0:00:07]} 7. Qc2 {[%emt 0:06:49]} c6 {[%emt 0:00:
08]} 8. Nbd2 {[%emt 0:02:08]} b6 {[%emt 0:00:06]} 9. b3 {[%emt 0:09:01]} Bb7 {
[%emt 0:00:40]} 10. Bb2 {[%emt 0:01:29]} c5 {[%emt 0:02:13]} 11. cxd5 {[%emt 0:
06:26]} Nxd5 {[%emt 0:06:19]} 12. Rac1 {[%emt 0:02:35]} Re8 {[%emt 0:23:37]}
13. Rfd1 {[%emt 0:05:04]} cxd4 {[%emt 0:06:19]} 14. Nxd4 {[%emt 0:00:25]} Nb4 {
[%emt 0:00:49]} 15. Qb1 {[%emt 0:05:25]} Bxg2 16. Kxg2 {[%emt 0:00:09]} Qb8 {
[%emt 0:02:06]} 17. a3 {[%emt 0:12:11]} Qb7+ {[%emt 0:01:11]} 18. e4 {[%emt 0:
01:40]} Na6 {[%emt 0:00:52]} 19. Nb5 {[%emt 0:06:42]} Nf6 {[%emt 0:02:19]} 20.
b4 {[%emt 0:10:46]} Red8 {[%emt 0:01:43]} 21. f3 {[%emt 0:03:39]} Rac8 {
[%emt 0:02:01]} 22. Nb3 {[%emt 0:03:52]} Ne8 {[%emt 0:16:15]} 23. Rxc8 {
[%emt 0:11:48]} Rxc8 {[%emt 0:01:42]} 24. N3d4 {[%emt 0:00:39]} Nb8 {[%emt 0:
02:28]} 25. Qd3 {[%emt 0:05:47]} a6 {[%emt 0:12:45]} 26. Nc3 {[%emt 0:00:05]}
Nd6 {[%emt 0:00:04]} 27. Ba1 {[%emt 0:02:59]} Nc4 {[%emt 0:00:12]} 28. Nce2 {
[%emt 0:00:52]} h6 {[%emt 0:04:28]} 29. Rc1 {[%emt 0:02:12]} b5 {[%emt 0:00:03]
} 30. a4 {[%emt 0:00:15]} Nd7 {[%emt 0:04:20]} 31. axb5 {[%emt 0:00:11]} axb5 {
[%emt 0:00:12]} 32. Nc3 {[%emt 0:01:18]} Bxb4 {[%emt 0:02:25]} 33. Ncxb5 {
[%emt 0:00:17]} Nce5 {[%emt 0:00:36]} 34. Rxc8+ {[%emt 0:00:24]} Qxc8 {[%emt 0:
00:03]} 35. Qb3 {[%emt 0:00:44]} Qc1 {[%emt 0:00:44]} 36. Qxb4 {[%emt 0:00:27]}
Qxa1 {[%emt 0:00:03]} 37. Qc3 {[%emt 0:00:27]} Qb1 {[%emt 0:01:57]} 38. Qc2 {
[%emt 0:00:40]} Qe1 {[%emt 0:00:03]} 39. Qc3 {[%emt 0:00:28]} Qb1 {[%emt 0:03:
50]} 40. Qc2 {[%emt 0:00:00]} Qb4 {[%emt 0:00:00]} 41. Qc3 {[%emt 0:00:20]} Qa4
{[%emt 0:02:33]} 42. Qc2 {[%emt 0:03:02]} Qa6 {[%emt 0:05:54]} 43. Qc7 {
[%emt 0:02:57]} Qa2+ {[%emt 0:00:43]} 44. Qc2 {[%emt 0:00:07]} 1/2-1/2